[Event "Titled Tuesday Blitz May 25 2021"]
[White "Fayzullaev, Akmal"]
[Black "Krivonosov, Oleg"]
[WhiteFideId "14200554"]
[BlackFideId "11600349"]
[WhiteElo "2264"]
[BlackElo "2469"]
[Result "0-1"]
[Round "10"]
[TimeControl "180+1"]
[Date "2021.05.25"]
[WhiteClock "0:00:16"]
[BlackClock "0:01:07"]

1. e4 {[%clk 0:03:00]}  e5 {[%clk 0:02:59]} 2. Nf3 {[%clk 0:02:58]}  Nc6 {[%clk 0:02:58]} 3. Bb5 {[%clk 0:02:57]}  Nf6 {[%clk 0:02:57]} 4. d3 {[%clk 0:02:55]}  Bc5 {[%clk 0:02:56]} 5. Bxc6 {[%clk 0:02:53]}  dxc6 {[%clk 0:02:55]} 6. O-O {[%clk 0:02:52]}  Bg4 {[%clk 0:02:54]} 7. Be3 {[%clk 0:02:50]}  Qe7 {[%clk 0:02:51]} 8. Nbd2 {[%clk 0:02:48]}  Nd7 {[%clk 0:02:49]} 9. h3 {[%clk 0:02:46]}  Bh5 {[%clk 0:02:47]} 10. a3 {[%clk 0:02:39]}  O-O {[%clk 0:02:44]} 11. b4 {[%clk 0:02:37]}  Bb6 {[%clk 0:02:44]} 12. Nc4 {[%clk 0:02:26]}  a5 {[%clk 0:02:37]} 13. Bxb6 {[%clk 0:01:52]}  cxb6 {[%clk 0:02:34]} 14. c3 {[%clk 0:01:48]}  axb4 {[%clk 0:02:29]} 15. cxb4 {[%clk 0:01:47]}  b5 {[%clk 0:02:20]} 16. Ne3 {[%clk 0:01:46]}  Bxf3 {[%clk 0:02:16]} 17. Qxf3 {[%clk 0:01:44]}  Qf6 {[%clk 0:02:16]} 18. Qg3 {[%clk 0:01:33]}  Qg6 {[%clk 0:02:12]} 19. Qf3 {[%clk 0:01:23]}  Qf6 {[%clk 0:02:06]} 20. Qg4 {[%clk 0:01:22]}  Qe6 {[%clk 0:02:04]} 21. Qxe6 {[%clk 0:00:57]}  fxe6 {[%clk 0:02:03]} 22. Rfc1 {[%clk 0:00:51]}  h5 {[%clk 0:01:58]} 23. Kf1 {[%clk 0:00:43]}  Ra4 {[%clk 0:01:53]} 24. Rc3 {[%clk 0:00:38]}  Rfa8 {[%clk 0:01:49]} 25. Nc2 {[%clk 0:00:36]}  Kf7 {[%clk 0:01:46]} 26. Rd1 {[%clk 0:00:35]}  Ke7 {[%clk 0:01:43]} 27. Ke2 {[%clk 0:00:34]}  Rd8 {[%clk 0:01:36]} 28. d4 {[%clk 0:00:29]}  h4 {[%clk 0:01:32]} 29. Rcd3 {[%clk 0:00:20]}  Raa8 {[%clk 0:01:26]} 30. dxe5 {[%clk 0:00:18]}  Nxe5 {[%clk 0:01:14]} 31. Rxd8 {[%clk 0:00:19]}  Rxd8 {[%clk 0:01:14]} 32. Rxd8 {[%clk 0:00:19]}  Kxd8 {[%clk 0:01:14]} 33. Ke3 {[%clk 0:00:20]}  Ke7 {[%clk 0:01:10]} 34. Kf4 {[%clk 0:00:20]}  Kf6 {[%clk 0:01:09]} 35. Ne3 {[%clk 0:00:16]}  g5# {[%clk 0:01:07]} 0-1


[Site "https://www.chess.com"]

[Event "Titled Tuesday Blitz May 25 2021"]
[White "Garcia, Gabriel Gonzaga"]
[Black "Weber, Samuel"]
[WhiteFideId "2138956"]
[BlackFideId "12924008"]
[WhiteElo "2240"]
[BlackElo "2240"]
[Result "0-1"]
[Round "10"]
[TimeControl "180+1"]
[Date "2021.05.25"]
[WhiteClock "0:00:07"]
[BlackClock "0:00:07"]

1. e4 {[%clk 0:03:00]}  c5 {[%clk 0:02:58]} 2. Nf3 {[%clk 0:02:59]}  Nc6 {[%clk 0:02:56]} 3. d4 {[%clk 0:03:00]}  cxd4 {[%clk 0:02:56]} 4. Nxd4 {[%clk 0:03:01]}  e5 {[%clk 0:02:57]} 5. Nb5 {[%clk 0:03:01]}  d6 {[%clk 0:02:55]} 6. Bc4 {[%clk 0:03:01]}  Nf6 {[%clk 0:02:35]} 7. O-O {[%clk 0:03:00]}  a6 {[%clk 0:02:35]} 8. N5c3 {[%clk 0:03:00]}  Be7 {[%clk 0:02:30]} 9. Bg5 {[%clk 0:02:59]}  Be6 {[%clk 0:02:21]} 10. Bd5 {[%clk 0:02:39]}  Nxd5 {[%clk 0:02:12]} 11. exd5 {[%clk 0:02:40]}  Bxg5 {[%clk 0:02:09]} 12. dxe6 {[%clk 0:02:40]}  fxe6 {[%clk 0:02:09]} 13. Ne4 {[%clk 0:02:36]}  Be7 {[%clk 0:02:08]} 14. Qh5+ {[%clk 0:02:37]}  g6 {[%clk 0:02:01]} 15. Qh6 {[%clk 0:02:37]}  d5 {[%clk 0:01:33]} 16. Qg7 {[%clk 0:02:37]}  Rf8 {[%clk 0:01:33]} 17. Ng3 {[%clk 0:02:38]}  Rf7 {[%clk 0:01:29]} 18. Qg8+ {[%clk 0:02:36]}  Bf8 {[%clk 0:01:29]} 19. Nc3 {[%clk 0:02:29]}  Qf6 {[%clk 0:01:18]} 20. Nce4 {[%clk 0:01:10]}  dxe4 {[%clk 0:00:49]} 21. Nxe4 {[%clk 0:01:11]}  Qe7 {[%clk 0:00:40]} 22. Rad1 {[%clk 0:01:11]}  Nd4 {[%clk 0:00:20]} 23. c3 {[%clk 0:01:03]}  O-O-O {[%clk 0:00:20]} 24. cxd4 {[%clk 0:01:03]}  Bh6 {[%clk 0:00:20]} 25. Nd6+ {[%clk 0:00:56]}  Qxd6 {[%clk 0:00:18]} 26. Qxf7 {[%clk 0:00:56]}  exd4 {[%clk 0:00:19]} 27. Qxh7 {[%clk 0:00:53]}  Bf4 {[%clk 0:00:18]} 28. Qxg6 {[%clk 0:00:53]}  Bxh2+ {[%clk 0:00:18]} 29. Kh1 {[%clk 0:00:54]}  Rh8 {[%clk 0:00:17]} 30. g3 {[%clk 0:00:38]}  Bxg3+ {[%clk 0:00:16]} 31. Kg2 {[%clk 0:00:39]}  Rh2+ {[%clk 0:00:15]} 32. Kf3 {[%clk 0:00:39]}  Qd5+ {[%clk 0:00:15]} 33. Qe4 {[%clk 0:00:35]}  Qh5+ {[%clk 0:00:15]} 34. Qg4 {[%clk 0:00:31]}  Qd5+ {[%clk 0:00:13]} 35. Ke2 {[%clk 0:00:32]}  Bd6 {[%clk 0:00:09]} 36. Qxd4 {[%clk 0:00:27]}  Qb5+ {[%clk 0:00:06]} 37. Rd3 {[%clk 0:00:23]}  Qh5+ {[%clk 0:00:06]} 38. Ke1 {[%clk 0:00:20]}  Bc7 {[%clk 0:00:04]} 39. Rc3 {[%clk 0:00:14]}  Rh4 {[%clk 0:00:03]} 40. Qc5 {[%clk 0:00:13]}  Re4+ {[%clk 0:00:03]} 41. Kd2 {[%clk 0:00:13]}  Qe2+ {[%clk 0:00:03]} 42. Kc1 {[%clk 0:00:13]}  Qxf1+ {[%clk 0:00:03]} 43. Kc2 {[%clk 0:00:14]}  Qe2+ {[%clk 0:00:03]} 44. Kb3 {[%clk 0:00:15]}  Qb5+ {[%clk 0:00:03]} 45. Qxb5 {[%clk 0:00:15]}  axb5 {[%clk 0:00:04]} 46. Rf3 {[%clk 0:00:14]}  Kd7 {[%clk 0:00:04]} 47. Rf7+ {[%clk 0:00:14]}  Kc6 {[%clk 0:00:05]} 48. Re7 {[%clk 0:00:12]}  e5 {[%clk 0:00:05]} 49. Re6+ {[%clk 0:00:09]}  Kd5 {[%clk 0:00:05]} 50. Re7 {[%clk 0:00:10]}  Bd6 {[%clk 0:00:05]} 51. Rxb7 {[%clk 0:00:10]}  Rf4 {[%clk 0:00:06]} 52. Rxb5+ {[%clk 0:00:11]}  Kd4 {[%clk 0:00:06]} 53. a4 {[%clk 0:00:11]}  Rxf2 {[%clk 0:00:06]} 54. a5 {[%clk 0:00:12]}  e4 {[%clk 0:00:07]} 55. a6 {[%clk 0:00:12]}  Rf8 {[%clk 0:00:07]} 56. Rb6 {[%clk 0:00:11]}  Bc5 {[%clk 0:00:07]} 57. Rc6 {[%clk 0:00:10]}  e3 {[%clk 0:00:07]} 58. Re6 {[%clk 0:00:10]}  Ra8 {[%clk 0:00:06]} 59. Ka4 {[%clk 0:00:10]}  Kd5 {[%clk 0:00:06]} 60. Rh6 {[%clk 0:00:07]}  e2 {[%clk 0:00:06]} 61. Rh1 {[%clk 0:00:07]}  Rxa6+ {[%clk 0:00:06]} 62. Kb5 {[%clk 0:00:08]}  Re6 {[%clk 0:00:07]} 63. b4 {[%clk 0:00:07]}  Bxb4 {[%clk 0:00:07]} 0-1


[Site "https://www.chess.com"]

[Event "Titled Tuesday Blitz May 25 2021"]
[White "Gontcharov, Vladislav"]
[Black "Piesik, Piotr"]
[WhiteFideId "4123492"]
[BlackFideId "1136194"]
[WhiteElo "2503"]
[BlackElo "2369"]
[Result "1-0"]
[Round "10"]
[TimeControl "180+1"]
[Date "2021.05.25"]
[WhiteClock "0:02:03"]
[BlackClock "0:02:15"]

1. e4 {[%clk 0:03:00]}  g6 {[%clk 0:02:59]} 2. d4 {[%clk 0:02:59]}  Bg7 {[%clk 0:03:00]} 3. Nc3 {[%clk 0:02:59]}  c6 {[%clk 0:03:00]} 4. h3 {[%clk 0:02:57]}  d6 {[%clk 0:03:00]} 5. Nf3 {[%clk 0:02:57]}  Nf6 {[%clk 0:03:00]} 6. Bc4 {[%clk 0:02:50]}  O-O {[%clk 0:03:01]} 7. O-O {[%clk 0:02:50]}  b5 {[%clk 0:03:00]} 8. Bd3 {[%clk 0:02:49]}  Nbd7 {[%clk 0:02:58]} 9. a4 {[%clk 0:02:46]}  b4 {[%clk 0:02:58]} 10. Ne2 {[%clk 0:02:47]}  e5 {[%clk 0:02:57]} 11. dxe5 {[%clk 0:02:42]}  dxe5 {[%clk 0:02:56]} 12. Be3 {[%clk 0:02:39]}  Qe7 {[%clk 0:02:56]} 13. c3 {[%clk 0:02:37]}  Nc5 {[%clk 0:02:54]} 14. Bxc5 {[%clk 0:02:20]}  Qxc5 {[%clk 0:02:55]} 15. cxb4 {[%clk 0:02:20]}  Qxb4 {[%clk 0:02:54]} 16. Qc2 {[%clk 0:02:19]}  Nd7 {[%clk 0:02:46]} 17. Rfc1 {[%clk 0:02:16]}  c5 {[%clk 0:02:33]} 18. a5 {[%clk 0:02:13]}  Rb8 {[%clk 0:02:30]} 19. Rcb1 {[%clk 0:02:09]}  Bb7 {[%clk 0:02:15]} 20. Ra4 {[%clk 0:02:03]} 1-0


[Site "https://www.chess.com"]

[Event "Titled Tuesday Blitz May 25 2021"]
[White "Goryachkina, Aleksandra"]
[Black "Asis Gargatagli, Hipolito"]
[WhiteFideId "4147103"]
[BlackFideId "2260735"]
[WhiteElo "2441"]
[BlackElo "2557"]
[Result "0-1"]
[Round "10"]
[TimeControl "180+1"]
[Date "2021.05.25"]
[WhiteClock "0:00:28"]
[BlackClock "0:02:02"]

1. e4 {[%clk 0:02:59]}  e5 {[%clk 0:02:59]} 2. Nf3 {[%clk 0:02:59]}  Nc6 {[%clk 0:03:00]} 3. Nc3 {[%clk 0:02:59]}  Nf6 {[%clk 0:03:00]} 4. h3 {[%clk 0:02:59]}  g6 {[%clk 0:02:59]} 5. d4 {[%clk 0:02:57]}  exd4 {[%clk 0:03:00]} 6. Nxd4 {[%clk 0:02:58]}  Bg7 {[%clk 0:03:00]} 7. Be3 {[%clk 0:02:56]}  O-O {[%clk 0:03:00]} 8. Qd2 {[%clk 0:02:43]}  Re8 {[%clk 0:02:57]} 9. f3 {[%clk 0:02:21]}  d5 {[%clk 0:02:45]} 10. Nxc6 {[%clk 0:02:18]}  bxc6 {[%clk 0:02:45]} 11. O-O-O {[%clk 0:02:18]}  Qe7 {[%clk 0:02:29]} 12. Bh6 {[%clk 0:02:02]}  Bh8 {[%clk 0:02:24]} 13. Bd3 {[%clk 0:01:45]}  Rb8 {[%clk 0:02:23]} 14. Rhe1 {[%clk 0:01:26]}  Qb4 {[%clk 0:02:03]} 15. b3 {[%clk 0:00:28]}  Nxe4 {[%clk 0:02:02]} 0-1


[Site "https://www.chess.com"]

[Event "Titled Tuesday Blitz May 25 2021"]
[White "Hebden, Mark L"]
[Black "Vogel, Roven"]
[WhiteFideId "400084"]
[BlackFideId "12908088"]
[WhiteElo "2457"]
[BlackElo "2516"]
[Result "0-1"]
[Round "10"]
[TimeControl "180+1"]
[Date "2021.05.25"]
[WhiteClock "0:01:13"]
[BlackClock "0:01:23"]

1. d4 {[%clk 0:03:00]}  d5 {[%clk 0:02:59]} 2. Nf3 {[%clk 0:03:00]}  Nf6 {[%clk 0:02:59]} 3. c4 {[%clk 0:03:00]}  e6 {[%clk 0:02:58]} 4. Bg5 {[%clk 0:02:59]}  Be7 {[%clk 0:02:55]} 5. e3 {[%clk 0:02:58]}  O-O {[%clk 0:02:53]} 6. Nc3 {[%clk 0:02:58]}  h6 {[%clk 0:02:48]} 7. Bh4 {[%clk 0:02:56]}  b6 {[%clk 0:02:45]} 8. Bd3 {[%clk 0:02:54]}  Bb7 {[%clk 0:02:43]} 9. O-O {[%clk 0:02:53]}  Nbd7 {[%clk 0:02:41]} 10. Bg3 {[%clk 0:02:52]}  Nh5 {[%clk 0:02:28]} 11. cxd5 {[%clk 0:02:46]}  Nxg3 {[%clk 0:02:17]} 12. hxg3 {[%clk 0:02:45]}  exd5 {[%clk 0:02:16]} 13. Qe2 {[%clk 0:02:41]}  Re8 {[%clk 0:02:14]} 14. Ba6 {[%clk 0:02:39]}  Qc8 {[%clk 0:02:10]} 15. Bxb7 {[%clk 0:02:39]}  Qxb7 {[%clk 0:02:11]} 16. Rfd1 {[%clk 0:02:38]}  Bd6 {[%clk 0:02:06]} 17. Nb5 {[%clk 0:02:31]}  Bf8 {[%clk 0:02:04]} 18. Rac1 {[%clk 0:02:21]}  c6 {[%clk 0:02:04]} 19. Nc3 {[%clk 0:02:20]}  Rad8 {[%clk 0:02:01]} 20. Qc2 {[%clk 0:02:18]}  Bd6 {[%clk 0:02:00]} 21. a3 {[%clk 0:02:16]}  Nf6 {[%clk 0:01:59]} 22. b4 {[%clk 0:02:14]}  Rc8 {[%clk 0:01:56]} 23. Qf5 {[%clk 0:02:06]}  b5 {[%clk 0:01:52]} 24. g4 {[%clk 0:02:02]}  Qd7 {[%clk 0:01:52]} 25. Qxd7 {[%clk 0:01:59]}  Nxd7 {[%clk 0:01:53]} 26. g5 {[%clk 0:01:56]}  hxg5 {[%clk 0:01:51]} 27. Nxg5 {[%clk 0:01:56]}  Nb6 {[%clk 0:01:50]} 28. e4 {[%clk 0:01:51]}  Bf4 {[%clk 0:01:49]} 29. Nf3 {[%clk 0:01:44]}  Bxc1 {[%clk 0:01:49]} 30. Rxc1 {[%clk 0:01:45]}  dxe4 {[%clk 0:01:48]} 31. Ne5 {[%clk 0:01:45]}  f6 {[%clk 0:01:42]} 32. Ng6 {[%clk 0:01:43]}  Nc4 {[%clk 0:01:40]} 33. a4 {[%clk 0:01:42]}  a6 {[%clk 0:01:39]} 34. g4 {[%clk 0:01:35]}  e3 {[%clk 0:01:38]} 35. f3 {[%clk 0:01:26]}  Rcd8 {[%clk 0:01:30]} 36. axb5 {[%clk 0:01:25]}  axb5 {[%clk 0:01:29]} 37. Ne2 {[%clk 0:01:24]}  Ra8 {[%clk 0:01:26]} 38. Ngf4 {[%clk 0:01:23]}  Ra2 {[%clk 0:01:25]} 39. Re1 {[%clk 0:01:22]}  Kf7 {[%clk 0:01:24]} 40. d5 {[%clk 0:01:13]}  g5 {[%clk 0:01:23]} 0-1


[Site "https://www.chess.com"]

[Event "Titled Tuesday Blitz May 25 2021"]
[White "Indjic, Aleksandar"]
[Black "Sadhwani, Raunak"]
[WhiteFideId "911925"]
[BlackFideId "35093487"]
[WhiteElo "2643"]
[BlackElo "2514"]
[Result "1-0"]
[Round "10"]
[TimeControl "180+1"]
[Date "2021.05.25"]
[WhiteClock "0:00:45"]
[BlackClock "0:00:07"]

1. d4 {[%clk 0:03:00]}  c5 {[%clk 0:03:00]} 2. d5 {[%clk 0:03:00]}  e5 {[%clk 0:03:01]} 3. e4 {[%clk 0:02:59]}  d6 {[%clk 0:03:00]} 4. Nc3 {[%clk 0:02:57]}  a6 {[%clk 0:02:59]} 5. a4 {[%clk 0:02:47]}  Be7 {[%clk 0:02:59]} 6. g3 {[%clk 0:02:47]}  Bg5 {[%clk 0:02:58]} 7. Bxg5 {[%clk 0:02:45]}  Qxg5 {[%clk 0:02:58]} 8. Nf3 {[%clk 0:02:45]}  Qe7 {[%clk 0:02:58]} 9. h4 {[%clk 0:02:45]}  Nf6 {[%clk 0:02:55]} 10. Nd2 {[%clk 0:02:43]}  h5 {[%clk 0:02:53]} 11. Nc4 {[%clk 0:02:40]}  Nbd7 {[%clk 0:02:50]} 12. a5 {[%clk 0:02:40]}  Rb8 {[%clk 0:02:44]} 13. Be2 {[%clk 0:02:39]}  Nf8 {[%clk 0:02:43]} 14. Qd2 {[%clk 0:02:35]}  Bg4 {[%clk 0:02:43]} 15. f3 {[%clk 0:02:28]}  Bd7 {[%clk 0:02:43]} 16. Rb1 {[%clk 0:02:27]}  Ng6 {[%clk 0:02:22]} 17. b4 {[%clk 0:02:26]}  cxb4 {[%clk 0:02:17]} 18. Rxb4 {[%clk 0:02:27]}  O-O {[%clk 0:02:17]} 19. Rb6 {[%clk 0:02:26]}  Ne8 {[%clk 0:02:12]} 20. Qg5 {[%clk 0:02:26]}  Nf6 {[%clk 0:01:46]} 21. Nxd6 {[%clk 0:02:24]}  Rfd8 {[%clk 0:01:40]} 22. Nd1 {[%clk 0:02:09]}  Bc8 {[%clk 0:01:17]} 23. Nc4 {[%clk 0:02:06]}  Bd7 {[%clk 0:01:09]} 24. Qd2 {[%clk 0:01:40]}  Bb5 {[%clk 0:01:07]} 25. Nce3 {[%clk 0:01:39]}  Nd7 {[%clk 0:01:05]} 26. c4 {[%clk 0:01:27]}  Nxb6 {[%clk 0:01:02]} 27. axb6 {[%clk 0:01:27]}  Bd7 {[%clk 0:00:59]} 28. Qa5 {[%clk 0:01:26]}  Rbc8 {[%clk 0:00:54]} 29. Nb2 {[%clk 0:01:26]}  Qc5 {[%clk 0:00:46]} 30. Qxc5 {[%clk 0:01:25]}  Rxc5 {[%clk 0:00:47]} 31. Kd2 {[%clk 0:01:24]}  Ra5 {[%clk 0:00:38]} 32. Bd3 {[%clk 0:01:11]}  Rc8 {[%clk 0:00:34]} 33. Bc2 {[%clk 0:01:11]}  Nf8 {[%clk 0:00:26]} 34. Nd3 {[%clk 0:01:10]}  Be8 {[%clk 0:00:14]} 35. Nxe5 {[%clk 0:01:08]}  f6 {[%clk 0:00:13]} 36. Nd3 {[%clk 0:01:09]}  Nd7 {[%clk 0:00:14]} 37. Rb1 {[%clk 0:01:08]}  Nc5 {[%clk 0:00:14]} 38. Nxc5 {[%clk 0:01:09]}  Raxc5 {[%clk 0:00:15]} 39. Kc3 {[%clk 0:01:07]}  Bd7 {[%clk 0:00:16]} 40. Kd4 {[%clk 0:01:05]}  Ra5 {[%clk 0:00:16]} 41. Bd3 {[%clk 0:01:03]}  Ra2 {[%clk 0:00:16]} 42. f4 {[%clk 0:01:01]}  a5 {[%clk 0:00:16]} 43. e5 {[%clk 0:01:01]}  a4 {[%clk 0:00:15]} 44. e6 {[%clk 0:01:01]}  Be8 {[%clk 0:00:15]} 45. d6 {[%clk 0:01:00]}  Rc6 {[%clk 0:00:16]} 46. c5 {[%clk 0:01:00]}  Kf8 {[%clk 0:00:14]} 47. d7 {[%clk 0:00:58]}  Bxd7 {[%clk 0:00:14]} 48. exd7 {[%clk 0:00:58]}  Ke7 {[%clk 0:00:15]} 49. Nd5+ {[%clk 0:00:50]}  Kxd7 {[%clk 0:00:15]} 50. Nb4 {[%clk 0:00:50]}  Rd2 {[%clk 0:00:14]} 51. Ke3 {[%clk 0:00:45]}  Rh2 {[%clk 0:00:07]} 52. Bf5+ {[%clk 0:00:45]} 1-0


[Site "https://www.chess.com"]

[Event "Titled Tuesday Blitz May 25 2021"]
[White "Khanin, Semen"]
[Black "Jones, Gawain C B"]
[WhiteFideId "4111990"]
[BlackFideId "409561"]
[WhiteElo "2521"]
[BlackElo "2657"]
[Result "1-0"]
[Round "10"]
[TimeControl "180+1"]
[Date "2021.05.25"]
[WhiteClock "0:00:38"]
[BlackClock "0:00:02"]

1. e4 {[%clk 0:03:00]}  e5 {[%clk 0:02:56]} 2. Nf3 {[%clk 0:03:00]}  Nc6 {[%clk 0:02:57]} 3. Bb5 {[%clk 0:03:01]}  a6 {[%clk 0:02:57]} 4. Ba4 {[%clk 0:03:01]}  d6 {[%clk 0:02:57]} 5. O-O {[%clk 0:02:57]}  Bd7 {[%clk 0:02:55]} 6. Bxc6 {[%clk 0:02:52]}  Bxc6 {[%clk 0:02:54]} 7. Nc3 {[%clk 0:02:52]}  Nf6 {[%clk 0:02:54]} 8. d4 {[%clk 0:02:53]}  Nxe4 {[%clk 0:02:45]} 9. Nxe4 {[%clk 0:02:51]}  Bxe4 {[%clk 0:02:46]} 10. Re1 {[%clk 0:02:51]}  Bxf3 {[%clk 0:02:16]} 11. Qxf3 {[%clk 0:02:50]}  Be7 {[%clk 0:02:16]} 12. dxe5 {[%clk 0:02:48]}  O-O {[%clk 0:02:16]} 13. exd6 {[%clk 0:02:43]}  Bxd6 {[%clk 0:02:16]} 14. Qxb7 {[%clk 0:02:40]}  a5 {[%clk 0:01:55]} 15. Qf3 {[%clk 0:02:35]}  Qh4 {[%clk 0:01:52]} 16. g3 {[%clk 0:02:34]}  Qc4 {[%clk 0:01:46]} 17. Qe4 {[%clk 0:02:27]}  Qb5 {[%clk 0:01:46]} 18. a4 {[%clk 0:02:20]}  Qb6 {[%clk 0:01:43]} 19. b3 {[%clk 0:02:12]}  Bc5 {[%clk 0:01:33]} 20. Be3 {[%clk 0:02:10]}  h6 {[%clk 0:01:27]} 21. Qc4 {[%clk 0:02:07]}  Bxe3 {[%clk 0:01:27]} 22. Rxe3 {[%clk 0:02:08]}  Rad8 {[%clk 0:01:25]} 23. Rae1 {[%clk 0:02:07]}  Rd2 {[%clk 0:01:22]} 24. R3e2 {[%clk 0:02:05]}  Rxe2 {[%clk 0:01:20]} 25. Rxe2 {[%clk 0:02:05]}  Qd6 {[%clk 0:01:16]} 26. Kg2 {[%clk 0:01:53]}  Rd8 {[%clk 0:01:12]} 27. h4 {[%clk 0:01:53]}  h5 {[%clk 0:01:07]} 28. Re3 {[%clk 0:01:53]}  Rb8 {[%clk 0:00:54]} 29. Rf3 {[%clk 0:01:46]}  Qe7 {[%clk 0:00:44]} 30. Qd5 {[%clk 0:01:36]}  g6 {[%clk 0:00:32]} 31. Qxa5 {[%clk 0:01:30]}  c5 {[%clk 0:00:29]} 32. Qc3 {[%clk 0:01:27]}  Rb4 {[%clk 0:00:21]} 33. Re3 {[%clk 0:01:21]}  Re4 {[%clk 0:00:18]} 34. Rxe4 {[%clk 0:01:17]}  Qxe4+ {[%clk 0:00:19]} 35. Kh2 {[%clk 0:01:16]}  Qf5 {[%clk 0:00:17]} 36. Kg1 {[%clk 0:01:16]}  Qd5 {[%clk 0:00:14]} 37. a5 {[%clk 0:01:15]}  Qd1+ {[%clk 0:00:12]} 38. Kh2 {[%clk 0:01:15]}  Qd6 {[%clk 0:00:08]} 39. Qd3 {[%clk 0:01:08]}  Qf6 {[%clk 0:00:07]} 40. Kg2 {[%clk 0:01:03]}  Qc6+ {[%clk 0:00:07]} 41. Qf3 {[%clk 0:01:01]}  Qa6 {[%clk 0:00:07]} 42. Qc3 {[%clk 0:00:53]}  Qb5 {[%clk 0:00:06]} 43. Qa1 {[%clk 0:00:50]}  Qa6 {[%clk 0:00:06]} 44. Qa4 {[%clk 0:00:50]}  Qa8+ {[%clk 0:00:02]} 45. Kg1 {[%clk 0:00:42]}  Qa6 {[%clk 0:00:02]} 46. Qe8+ {[%clk 0:00:41]}  Kh7 {[%clk 0:00:01]} 47. Qxf7+ {[%clk 0:00:41]}  Kh8 {[%clk 0:00:01]} 48. Qf8+ {[%clk 0:00:41]}  Kh7 {[%clk 0:00:02]} 49. Qxc5 {[%clk 0:00:41]}  Qe2 {[%clk 0:00:01]} 50. Qb6 {[%clk 0:00:40]}  Qe1+ {[%clk 0:00:01]} 51. Kh2 {[%clk 0:00:40]}  Qe4 {[%clk 0:00:02]} 52. a6 {[%clk 0:00:40]}  Qxc2 {[%clk 0:00:02]} 53. a7 {[%clk 0:00:38]} 1-0


[Site "https://www.chess.com"]

[Event "Titled Tuesday Blitz May 25 2021"]
[White "Khusnutdinov, Rustam"]
[Black "Isajevsky, Anton"]
[WhiteFideId "13701703"]
[BlackFideId "4142500"]
[WhiteElo "2571"]
[BlackElo "2510"]
[Result "0-1"]
[Round "10"]
[TimeControl "180+1"]
[Date "2021.05.25"]
[WhiteClock "0:00:07"]
[BlackClock "0:00:05"]

1. d4 {[%clk 0:03:00]}  d5 {[%clk 0:02:58]} 2. c4 {[%clk 0:02:59]}  e6 {[%clk 0:02:59]} 3. Nc3 {[%clk 0:02:59]}  a6 {[%clk 0:02:58]} 4. cxd5 {[%clk 0:02:52]}  exd5 {[%clk 0:02:58]} 5. Nf3 {[%clk 0:02:51]}  h6 {[%clk 0:02:58]} 6. Bf4 {[%clk 0:02:24]}  Nf6 {[%clk 0:02:57]} 7. e3 {[%clk 0:02:24]}  Bd6 {[%clk 0:02:56]} 8. Be5 {[%clk 0:02:24]}  c6 {[%clk 0:02:18]} 9. Bd3 {[%clk 0:02:21]}  O-O {[%clk 0:02:08]} 10. O-O {[%clk 0:02:19]}  Re8 {[%clk 0:02:08]} 11. Bxf6 {[%clk 0:02:07]}  Qxf6 {[%clk 0:02:08]} 12. e4 {[%clk 0:02:08]}  dxe4 {[%clk 0:01:46]} 13. Nxe4 {[%clk 0:02:09]}  Qd8 {[%clk 0:01:41]} 14. Qb3 {[%clk 0:02:08]}  b5 {[%clk 0:01:33]} 15. Rfe1 {[%clk 0:01:53]}  Be6 {[%clk 0:01:33]} 16. Qc2 {[%clk 0:01:53]}  Ra7 {[%clk 0:01:23]} 17. Ne5 {[%clk 0:01:46]}  Rc7 {[%clk 0:00:56]} 18. Nc5 {[%clk 0:01:39]}  Bxc5 {[%clk 0:00:53]} 19. dxc5 {[%clk 0:01:27]}  Nd7 {[%clk 0:00:53]} 20. Rad1 {[%clk 0:01:19]}  Qf6 {[%clk 0:00:48]} 21. Qc3 {[%clk 0:00:43]}  Nxe5 {[%clk 0:00:44]} 22. Rxe5 {[%clk 0:00:44]}  Rce7 {[%clk 0:00:38]} 23. a3 {[%clk 0:00:28]}  Bd5 {[%clk 0:00:30]} 24. Rxe7 {[%clk 0:00:28]}  Qxe7 {[%clk 0:00:30]} 25. Bf1 {[%clk 0:00:28]}  g6 {[%clk 0:00:20]} 26. b4 {[%clk 0:00:28]}  Qg5 {[%clk 0:00:15]} 27. Re1 {[%clk 0:00:25]}  Qd8 {[%clk 0:00:03]} 28. g3 {[%clk 0:00:23]}  Rxe1 {[%clk 0:00:02]} 29. Qxe1 {[%clk 0:00:23]}  Kg7 {[%clk 0:00:03]} 30. Qe5+ {[%clk 0:00:23]}  Qf6 {[%clk 0:00:02]} 31. Qe3 {[%clk 0:00:21]}  Qa1 {[%clk 0:00:02]} 32. f4 {[%clk 0:00:14]}  Bc4 {[%clk 0:00:02]} 33. Qf2 {[%clk 0:00:15]}  Bxf1 {[%clk 0:00:01]} 34. Qxf1 {[%clk 0:00:15]}  Qxa3 {[%clk 0:00:02]} 35. Qe1 {[%clk 0:00:16]}  Qd3 {[%clk 0:00:01]} 36. Qe5+ {[%clk 0:00:16]}  Kh7 {[%clk 0:00:02]} 37. Qd6 {[%clk 0:00:15]}  Qe4 {[%clk 0:00:01]} 38. Kf2 {[%clk 0:00:10]}  Kg7 {[%clk 0:00:02]} 39. Qc7 {[%clk 0:00:08]}  Qxb4 {[%clk 0:00:02]} 40. Qxc6 {[%clk 0:00:09]}  Qd4+ {[%clk 0:00:02]} 41. Kf3 {[%clk 0:00:09]}  b4 {[%clk 0:00:03]} 42. Qd6 {[%clk 0:00:08]}  Qc3+ {[%clk 0:00:04]} 43. Ke4 {[%clk 0:00:08]}  b3 {[%clk 0:00:04]} 44. Qb6 {[%clk 0:00:07]}  b2 {[%clk 0:00:04]} 45. c6 {[%clk 0:00:07]}  Qc2+ {[%clk 0:00:05]} 0-1


[Site "https://www.chess.com"]

[Event "Titled Tuesday Blitz May 25 2021"]
[White "Koellner, Ruben Gideon"]
[Black "Blanco Ronquillo, Humberto L."]
[WhiteFideId "12993093"]
[BlackFideId "3504239"]
[WhiteElo "2529"]
[BlackElo "2423"]
[Result "1-0"]
[Round "10"]
[TimeControl "180+1"]
[Date "2021.05.25"]
[WhiteClock "0:00:23"]
[BlackClock "0:00:14"]

1. d4 {[%clk 0:03:00]}  Nf6 {[%clk 0:02:59]} 2. Bg5 {[%clk 0:03:00]}  e6 {[%clk 0:02:58]} 3. Nd2 {[%clk 0:03:00]}  h6 {[%clk 0:02:55]} 4. Bh4 {[%clk 0:02:57]}  d5 {[%clk 0:02:54]} 5. e3 {[%clk 0:02:56]}  Be7 {[%clk 0:02:50]} 6. Bd3 {[%clk 0:02:53]}  O-O {[%clk 0:02:49]} 7. c3 {[%clk 0:02:53]}  b6 {[%clk 0:02:48]} 8. f4 {[%clk 0:02:49]}  Bb7 {[%clk 0:02:44]} 9. Bxf6 {[%clk 0:02:47]}  Bxf6 {[%clk 0:02:43]} 10. Ngf3 {[%clk 0:02:47]}  c5 {[%clk 0:02:40]} 11. O-O {[%clk 0:02:42]}  Nd7 {[%clk 0:02:37]} 12. Ne5 {[%clk 0:02:41]}  c4 {[%clk 0:01:47]} 13. Bc2 {[%clk 0:02:40]}  b5 {[%clk 0:01:47]} 14. a3 {[%clk 0:02:20]}  a5 {[%clk 0:01:44]} 15. Qh5 {[%clk 0:02:19]}  Qe7 {[%clk 0:01:42]} 16. g4 {[%clk 0:02:02]}  b4 {[%clk 0:00:52]} 17. Nxd7 {[%clk 0:01:40]}  Qxd7 {[%clk 0:00:49]} 18. g5 {[%clk 0:01:39]}  Bd8 {[%clk 0:00:47]} 19. Nf3 {[%clk 0:01:01]}  bxc3 {[%clk 0:00:25]} 20. bxc3 {[%clk 0:01:00]}  Bc7 {[%clk 0:00:23]} 21. Rab1 {[%clk 0:00:43]}  Bc6 {[%clk 0:00:22]} 22. gxh6 {[%clk 0:00:43]}  g6 {[%clk 0:00:22]} 23. Qh4 {[%clk 0:00:38]}  Qd8 {[%clk 0:00:18]} 24. Qh3 {[%clk 0:00:28]}  Kh8 {[%clk 0:00:18]} 25. Ne5 {[%clk 0:00:25]}  Bxe5 {[%clk 0:00:16]} 26. fxe5 {[%clk 0:00:25]}  Qg5+ {[%clk 0:00:16]} 27. Kh1 {[%clk 0:00:24]}  Ra7 {[%clk 0:00:14]} 28. Rg1 {[%clk 0:00:23]} 1-0


[Site "https://www.chess.com"]